fUST/lending_fUST_20250305
["ID","MTS","AMOUNT","RATE_DAILY","PERIOD"]
[355395662,1741104522215,-7824.2016752,0.00025949,2]
[355395663,1741104522241,-1914.2639527,0.00025981,2]
[355395664,1741104522268,-300.0,0.00026017,2]
[355395665,1741104522294,-4663.0996366,0.0002602,2]
[355395666,1741104522325,-415.2172803,0.0002602,2]
[355395667,1741104522351,-256.94312963,0.00026967,2]
[355395668,1741104522376,-200.0,0.00027,120]
[355395669,1741104522401,-11994.0908849,0.00027042,2]
[355395670,1741104522426,-47976.3635394,0.00027042,2]
[355395671,1741104522452,-500.0,0.00027051,2]
[355395672,1741104522480,-622.36640491,0.00027051,2]
[355395673,1741104522507,-500.0,0.00027051,2]
[355395674,1741104522533,-500.0,0.00027051,2]
[355395675,1741104522564,-500.0,0.00027051,2]
[355395676,1741104522596,-622.36640491,0.00027051,2]
[355395677,1741104522628,-500.0,0.00027051,2]
[355395678,1741104522658,-500.0,0.00027051,2]
[355395679,1741104522688,-622.36640491,0.00027051,2]
[355395680,1741104522715,-500.0,0.00027051,2]
[355395681,1741104522741,-500.0,0.00027051,2]
[355395682,1741104522770,-622.36640491,0.00027051,2]
[355395683,1741104522795,-500.0,0.00027051,2]
[355395684,1741104522823,-500.0,0.00027051,2]
[355395685,1741104522848,-500.0,0.00027051,2]
[355395686,1741104522877,-622.36640491,0.00027051,2]
[355395687,1741104522903,-500.0,0.00027051,2]
[355395688,1741104522929,-500.0,0.00027051,2]
[355395689,1741104522958,-622.36640491,0.00027051,2]
[355395690,1741104522986,-500.0,0.00027051,2]
[355395691,1741104523013,-500.0,0.00027051,2]
[355395692,1741104523040,-500.0,0.00027051,2]
[355395693,1741104523075,-622.36640491,0.00027051,2]
[355395694,1741104523110,-500.0,0.00027051,2]
[355395695,1741104523136,-500.0,0.00027051,2]
[355395696,1741104523166,-622.36640491,0.00027051,2]
[355395697,1741104523192,-500.0,0.00027051,2]
[355395698,1741104523218,-500.0,0.00027051,2]
[355395699,1741104523243,-500.0,0.00027051,2]
[355395700,1741104523272,-622.36640491,0.00027051,2]
[355395701,1741104523296,-500.0,0.00027051,2]
[355395702,1741104523327,-622.36640491,0.00027051,2]
[355395703,1741104523352,-500.0,0.00027051,2]
[355395704,1741104523377,-500.0,0.00027051,2]
[355395705,1741104523404,-622.36640491,0.00027051,2]
[355395706,1741104523429,-500.0,0.00027051,2]
[355395707,1741104523455,-500.0,0.00027051,2]
[355395708,1741104523481,-500.0,0.00027051,2]
[355395709,1741104523511,-622.36640491,0.00027051,2]
[355395710,1741104523538,-500.0,0.00027051,2]
[355395711,1741104523567,-500.0,0.00027051,2]
[355395712,1741104523593,-500.0,0.00027051,2]
[355395713,1741104523624,-622.36640491,0.00027051,2]
[355395714,1741104523651,-500.0,0.00027051,2]
[355395715,1741104523677,-500.0,0.00027051,2]
[355395716,1741104523708,-622.36640491,0.00027051,2]
[355395717,1741104523735,-500.0,0.00027051,2]
[355395718,1741104523764,-622.36640491,0.00027051,2]
[355395719,1741104523791,-189.0500257,0.00027051,2]
[355395720,1741104523819,-500.0,0.00027051,2]
[355395721,1741104523846,-500.0,0.00027051,2]
[355395722,1741104523876,-622.36640491,0.00027051,2]
[355395723,1741104523905,-622.36640491,0.00027051,2]
[355395724,1741104523931,-500.0,0.00027051,2]
[355395725,1741104523956,-500.0,0.00027051,2]
[355395726,1741104523985,-622.36640491,0.00027051,2]
[355395727,1741104524010,-500.0,0.00027051,2]
[355395728,1741104524035,-500.0,0.00027051,2]
[355395729,1741104524065,-622.36640491,0.00027051,2]
[355395730,1741104524091,-500.0,0.00027051,2]
[355395731,1741104524119,-622.36640491,0.00027051,2]
[355395732,1741104524145,-500.0,0.00027051,2]
[355395733,1741104524170,-500.0,0.00027051,2]
[355395734,1741104524199,-622.36640491,0.00027051,2]
[355395735,1741104524223,-500.0,0.00027051,2]
[355395736,1741104524251,-622.36640491,0.00027051,2]
[355395737,1741104524277,-500.0,0.00027051,2]
[355395738,1741104524303,-500.0,0.00027051,2]
[355395739,1741104524333,-622.36640491,0.00027051,2]
[355395740,1741104524364,-622.36640491,0.00027051,2]
[355395741,1741104524391,-500.0,0.00027051,2]
[355395742,1741104524421,-622.36640491,0.00027051,2]
[355395743,1741104524449,-622.36640491,0.00027051,2]
[355395744,1741104524478,-622.36640491,0.00027051,2]
[355395745,1741104524627,-622.36640491,0.00027051,2]
[355395746,1741104524660,-500.0,0.00027051,2]
[355395747,1741104524688,-562.91290933,0.00027051,2]
[355395748,1741104524716,-351.98810281,0.00027051,2]
[355395749,1741104524742,-7436.40572808,0.00027052,5]
[355395750,1741104524770,-78612.19316776,0.00027052,5]
[355395751,1741104524795,-47976.3635394,0.00027057,2]
[355395752,1741104524824,-11994.0908849,0.00027063,2]
[355395753,1741104524850,-222000.0,0.00027067,2]
[355395754,1741104524876,-500.0,0.00027073,2]
[355395755,1741104524902,-500.0,0.00027073,2]
[355395756,1741104524928,-500.0,0.00027073,2]
[355395757,1741104524953,-500.0,0.00027073,2]
[355395758,1741104524978,-500.0,0.00027073,2]
[355395759,1741104525002,-500.0,0.00027073,2]
[355395760,1741104525026,-500.0,0.00027073,2]
[355395761,1741104525051,-500.0,0.00027073,2]
[355395762,1741104525078,-150.0,0.00027169,2]
[355395763,1741104525105,-170.93,0.000272,7]
[355395764,1741104525131,-23988.1817697,0.00027387,2]
[355395765,1741104525158,-1263.64196285,0.00027397,2]
[355395766,1741104525185,-1263.64196285,0.00027397,2]
[355395767,1741104525211,-1263.64196285,0.00027397,2]
[355395768,1741104525239,-1263.64196285,0.00027397,2]
[355395769,1741104525265,-1263.64196285,0.00027397,2]
[355395770,1741104525293,-1263.64196285,0.00027397,2]
[355395771,1741104525327,-1263.64196285,0.00027397,2]
[355395772,1741104525356,-1263.64196285,0.00027397,2]
[355395773,1741104525384,-1263.64196285,0.00027397,2]
[355395774,1741104525411,-1263.64196285,0.00027397,2]
[355395775,1741104525438,-1263.64196285,0.00027397,2]
[355395776,1741104525464,-1263.64196285,0.00027397,2]
[355395777,1741104525491,-1263.64196285,0.00027397,2]
[355395778,1741104525517,-1263.64196285,0.00027397,2]
[355395779,1741104525544,-1263.64196285,0.00027397,2]
[355395780,1741104525576,-1263.64196285,0.00027397,2]
[355395781,1741104525603,-1263.64196285,0.00027397,2]
[355395782,1741104525631,-1263.64196285,0.00027397,2]
[355395783,1741104525659,-1263.64196285,0.00027397,2]
[355395784,1741104525688,-1263.64196285,0.00027397,2]
[355395785,1741104525714,-253.9506439,0.00027397,120]
[355395786,1741104525752,-487.63119636,0.000279,4]
[355395787,1741104525785,-1000.776877,0.000285,2]
[355395788,1741104525815,-150.0,0.00028539,2]
[355395789,1741104525842,-150.0,0.00029909,2]
[355395790,1741104525869,-397.5329927,0.0003,120]
[355395791,1741104525923,622.36640491,0.00027051,2]
[355395792,1741104525960,1263.64196285,0.00027397,2]
[355395793,1741104526008,622.36640491,0.00027051,2]
[355395794,1741104526046,1263.64196285,0.00027397,2]
[355395795,1741104526083,622.36640491,0.00027051,2]
[355395796,1741104526116,1263.64196285,0.00027397,2]
[355395797,1741104526164,1263.64196285,0.00027397,2]
[355395798,1741104526221,1263.64196285,0.00027397,2]
[355395799,1741104526262,1263.64196285,0.00027397,2]
[355395800,1741104526302,1263.64196285,0.00027397,2]
[355395801,1741104526343,1263.64196285,0.00027397,2]
[355395802,1741104526463,500.0,0.00027051,2]
[355395803,1741104537198,157.8205,0.0003,2]
[355395843,1741104632974,-150.0,0.00025287,2]
[355395845,1741104632983,-484.84354611,0.0002695,2]
[355395847,1741104632994,-300.0,0.00026951,2]
[355395849,1741104633004,-1280.93383264,0.00026952,2]
[355395851,1741104633016,-35074.62129774,0.00026952,2]
[355395854,1741104633029,-2064.5055936,0.00026952,2]
[355395863,1741104633123,-430.09728893,0.00026952,2]
[355395943,1741104638699,-378.56232478,0.00026952,2]
[355395945,1741104638894,-182771.27966231,0.00026952,2]
[355395946,1741104638905,-550.03474069,0.00027051,2]
[355395947,1741104638921,-550.03474069,0.00027051,2]
[355395948,1741104638933,-550.03474069,0.00027051,2]
[355395949,1741104638944,-550.03474069,0.00027051,2]
[355395950,1741104638955,-550.03474069,0.00027051,2]
[355395951,1741104638965,-550.03474069,0.00027051,2]
[355395952,1741104638976,-550.03474069,0.00027051,2]
[355395953,1741104638986,-550.03474069,0.00027051,2]
[355395954,1741104638996,-550.03474069,0.00027051,2]
[355395955,1741104639005,-550.03474069,0.00027051,2]
[355395956,1741104639015,-550.03474069,0.00027051,2]
[355395957,1741104639026,-550.03474069,0.00027051,2]
[355395958,1741104639038,-550.03474069,0.00027051,2]
[355395959,1741104639048,-550.03474069,0.00027051,2]
[355395960,1741104639058,-550.03474069,0.00027051,2]
[355395961,1741104639068,-550.03474069,0.00027051,2]
[355395962,1741104639223,-550.03474069,0.00027051,2]
[355395963,1741104639233,-550.03474069,0.00027051,2]
[355395964,1741104639243,-1579.47988568,0.00027051,2]
[355395965,1741104639253,-550.03474069,0.00027051,2]
[355395966,1741104639263,-1579.47988568,0.00027051,2]
[355395967,1741104639276,-550.03474069,0.00027051,2]
[355395968,1741104639286,-550.03474069,0.00027051,2]
[355395969,1741104639296,-1579.47988568,0.00027051,2]
[355395970,1741104639306,-550.03474069,0.00027051,2]
[355395971,1741104639316,-1579.47988568,0.00027051,2]
[355395972,1741104639326,-550.03474069,0.00027051,2]
[355395973,1741104639336,-550.03474069,0.00027051,2]
[355395974,1741104639346,-1579.47988568,0.00027051,2]
[355395975,1741104639356,-550.03474069,0.00027051,2]
[355395976,1741104639366,-550.03474069,0.00027051,2]
[355395977,1741104639375,-1579.47988568,0.00027051,2]
[355395978,1741104639386,-550.03474069,0.00027051,2]
[355395979,1741104639397,-1579.47988568,0.00027051,2]
[355395980,1741104639410,-550.03474069,0.00027051,2]
[355395981,1741104639419,-1579.47988568,0.00027051,2]
[355395982,1741104639429,-550.03474069,0.00027051,2]
[355395983,1741104639439,-550.03474069,0.00027051,2]
[355395984,1741104639449,-1579.47988568,0.00027051,2]
[355395985,1741104639458,-550.03474069,0.00027051,2]
[355395986,1741104639469,-550.03474069,0.00027051,2]
[355395987,1741104639478,-550.03474069,0.00027051,2]
[355395988,1741104639487,-550.03474069,0.00027051,2]
[355395989,1741104639499,-1579.47988568,0.00027051,2]
[355395990,1741104639510,-1579.47988568,0.00027051,2]
[355395991,1741104639519,-550.03474069,0.00027051,2]
[355395992,1741104639530,-550.03474069,0.00027051,2]
[355395993,1741104639540,-1579.47988568,0.00027051,2]
[355395994,1741104639550,-550.03474069,0.00027051,2]
[355395995,1741104639561,-550.03474069,0.00027051,2]
[355395996,1741104639571,-1579.47988568,0.00027051,2]
[355395997,1741104639582,-550.03474069,0.00027051,2]
[355395998,1741104639593,-1579.47988568,0.00027051,2]
[355395999,1741104639603,-550.03474069,0.00027051,2]
[355396000,1741104639613,-550.03474069,0.00027051,2]
[355396001,1741104639623,-1579.47988568,0.00027051,2]
[355396002,1741104639633,-550.03474069,0.00027051,2]
[355396003,1741104639645,-550.03474069,0.00027051,2]
[355396004,1741104639655,-1579.47988568,0.00027051,2]
[355396005,1741104639672,-550.03474069,0.00027051,2]
[355396006,1741104639682,-1579.47988568,0.00027051,2]
[355396007,1741104639693,-550.03474069,0.00027051,2]
[355396008,1741104639704,-1579.47988568,0.00027051,2]
[355396009,1741104639714,-550.03474069,0.00027051,2]
[355396010,1741104639724,-1579.47988568,0.00027051,2]
[355396011,1741104639734,-1579.47988568,0.00027051,2]
[355396012,1741104639745,-1579.47988568,0.00027051,2]
[355396013,1741104639755,-1579.47988568,0.00027051,2]
[355396014,1741104639765,-1579.47988568,0.00027051,2]
[355396015,1741104639776,-1579.47988568,0.00027051,2]
[355396016,1741104639786,-1579.47988568,0.00027051,2]
[355396017,1741104639796,-1579.47988568,0.00027051,2]
[355396018,1741104639807,-1579.47988568,0.00027051,2]
[355396019,1741104639817,-1579.47988568,0.00027051,2]
[355396020,1741104639827,-1579.47988568,0.00027051,2]
[355396021,1741104639838,-1579.47988568,0.00027051,2]
[355396022,1741104639848,-1579.47988568,0.00027051,2]
[355396023,1741104639858,-1579.47988568,0.00027051,2]
[355396024,1741104639868,-1579.47988568,0.00027051,2]
[355396025,1741104639877,-1579.47988568,0.00027051,2]
[355396026,1741104639887,-1579.47988568,0.00027051,2]
[355396027,1741104639897,-1579.47988568,0.00027051,2]
[355396028,1741104639909,-1579.47988568,0.00027051,2]
[355396029,1741104639922,-1579.47988568,0.00027051,2]
[355396030,1741104639932,-1579.47988568,0.00027051,2]
[355396031,1741104639942,-1579.47988568,0.00027051,2]
[355396033,1741104639953,-1579.47988568,0.00027051,2]
[355396034,1741104639962,-564.50933912,0.00027051,2]
[355396035,1741104639972,-564.50933912,0.00027051,2]
[355396036,1741104639982,-564.50933912,0.00027051,2]
[355396037,1741104639992,-1550.1466878,0.00027051,2]
[355396038,1741104640003,-564.50933912,0.00027051,2]
[355396039,1741104640014,-564.50933912,0.00027051,2]
[355396040,1741104640025,-1550.1466878,0.00027051,2]
[355396041,1741104640036,-564.50933912,0.00027051,2]
[355396043,1741104640046,-564.50933912,0.00027051,2]
[355396044,1741104640056,-1550.1466878,0.00027051,2]
[355396045,1741104640066,-564.50933912,0.00027051,2]
[355396046,1741104640077,-1550.1466878,0.00027051,2]
[355396047,1741104640087,-564.50933912,0.00027051,2]
[355396048,1741104640100,-1550.1466878,0.00027051,2]
[355396049,1741104640110,-564.50933912,0.00027051,2]
[355396050,1741104640121,-564.50933912,0.00027051,2]
[355396051,1741104640131,-1550.1466878,0.00027051,2]
[355396052,1741104640142,-564.50933912,0.00027051,2]
[355396054,1741104640152,-564.50933912,0.00027051,2]
[355396056,1741104640165,-564.50933912,0.00027051,2]
[355396057,1741104640174,-1550.1466878,0.00027051,2]
[355396058,1741104640186,-564.50933912,0.00027051,2]
[355396060,1741104640196,-564.50933912,0.00027051,2]
[355396061,1741104640206,-1550.1466878,0.00027051,2]
[355396062,1741104640216,-564.50933912,0.00027051,2]
[355396063,1741104640226,-1550.1466878,0.00027051,2]
[355396064,1741104640236,-564.50933912,0.00027051,2]
[355396065,1741104640246,-1550.1466878,0.00027051,2]
[355396066,1741104640256,-564.50933912,0.00027051,2]
[355396067,1741104640266,-1550.1466878,0.00027051,2]
[355396068,1741104640277,-1550.1466878,0.00027051,2]
[355396069,1741104640288,-1550.1466878,0.00027051,2]
[355396070,1741104640298,-1550.1466878,0.00027051,2]
[355396071,1741104640308,-1550.1466878,0.00027051,2]
[355396072,1741104640318,-1550.1466878,0.00027051,2]
[355396073,1741104640329,-1550.1466878,0.00027051,2]
[355396074,1741104640340,-1550.1466878,0.00027051,2]
[355396076,1741104640351,-1550.1466878,0.00027051,2]
[355396078,1741104640361,-1550.1466878,0.00027051,2]
[355396080,1741104640371,-1550.1466878,0.00027051,2]
[355396081,1741104640381,-595.87096904,0.00027051,2]
[355396082,1741104640390,-1502.44986664,0.00027051,2]
[355396083,1741104640400,-1502.44986664,0.00027051,2]
[355396084,1741104640411,-1502.44986664,0.00027051,2]
[355396085,1741104640421,-1502.44986664,0.00027051,2]
[355396086,1741104640431,-1502.44986664,0.00027051,2]
[355396087,1741104640440,-1502.44986664,0.00027051,2]
[355396088,1741104640450,-1502.44986664,0.00027051,2]
[355396089,1741104640460,-1502.44986664,0.00027051,2]
[355396090,1741104640471,-1502.44986664,0.00027051,2]
[355396091,1741104640481,-1502.44986664,0.00027051,2]
[355396092,1741104640491,-1502.44986664,0.00027051,2]
[355396093,1741104640501,-1502.44986664,0.00027051,2]
[355396094,1741104640512,-1502.44986664,0.00027051,2]
[355396095,1741104640522,-500.0,0.00027073,2]
[355396096,1741104640534,-204.59134061,0.00027212,2]
[355396097,1741104640543,-549.02804035,0.00027373,2]
[355396098,1741104640553,-500.0,0.00027373,2]
[355396100,1741104640564,-500.0,0.00027373,2]
[355396102,1741104640573,-500.0,0.00027373,2]
[355396103,1741104640583,-500.0,0.00027373,2]
[355396105,1741104640593,-500.0,0.00027373,2]
[355396107,1741104640603,-500.0,0.00027373,2]
[355396108,1741104640613,-1045.06605577,0.00027397,2]
[355396109,1741104640625,-1045.06605577,0.00027397,2]
[355396110,1741104640635,-1045.06605577,0.00027397,2]
[355396111,1741104640648,-1045.06605577,0.00027397,2]
[355396112,1741104640663,-1045.06605577,0.00027397,2]
[355396114,1741104640675,-1045.06605577,0.00027397,2]
[355396116,1741104640687,-1045.06605577,0.00027397,2]
[355396117,1741104640696,-1045.06605577,0.00027397,2]
[355396119,1741104640706,-1045.06605577,0.00027397,2]
[355396121,1741104640716,-1045.06605577,0.00027397,2]
[355396122,1741104640726,-1045.06605577,0.00027397,2]
[355396123,1741104640737,-1045.06605577,0.00027397,2]
[355396124,1741104640747,-1045.06605577,0.00027397,2]
[355396125,1741104640757,-1045.06605577,0.00027397,2]
[355396126,1741104640767,-1045.06605577,0.00027397,2]
[355396127,1741104640777,-1045.06605577,0.00027397,2]
[355396128,1741104640788,-1045.06605577,0.00027397,2]
[355396129,1741104640798,-1045.06605577,0.00027397,2]
[355396130,1741104640809,-1045.06605577,0.00027397,2]
[355396131,1741104640820,-1045.06605577,0.00027397,2]
[355396132,1741104640831,-1045.06605577,0.00027397,2]
[355396133,1741104640841,-1045.06605577,0.00027397,2]
[355396134,1741104640851,-1045.06605577,0.00027397,2]
[355396135,1741104640861,-1045.06605577,0.00027397,2]
[355396136,1741104640871,-1045.06605577,0.00027397,2]
[355396137,1741104640881,-1045.06605577,0.00027397,2]
[355396138,1741104640892,-1045.06605577,0.00027397,2]
[355396139,1741104640904,-1045.06605577,0.00027397,2]
[355396140,1741104640917,-1045.06605577,0.00027397,2]
[355396141,1741104640927,-1045.06605577,0.00027397,2]
[355396142,1741104640936,-1031.38066694,0.00027397,2]
[355396143,1741104640946,-1031.38066694,0.00027397,2]
[355396144,1741104640957,-1031.38066694,0.00027397,2]
[355396145,1741104640967,-1031.38066694,0.00027397,2]
[355396146,1741104640978,-1031.38066694,0.00027397,2]
[355396147,1741104640988,-1031.38066694,0.00027397,2]
[355396148,1741104640997,-1031.38066694,0.00027397,2]
[355396149,1741104641007,-1031.38066694,0.00027397,2]
[355396150,1741104641018,-1031.38066694,0.00027397,2]
[355396151,1741104641028,-1031.38066694,0.00027397,2]
[355396152,1741104641039,-1031.38066694,0.00027397,2]
[355396153,1741104641050,-1031.38066694,0.00027397,2]
[355396154,1741104641061,-1031.38066694,0.00027397,2]
[355396155,1741104641071,-1031.38066694,0.00027397,2]
[355396156,1741104641082,-1031.38066694,0.00027397,2]
[355396157,1741104641093,-1031.38066694,0.00027397,2]
[355396158,1741104641104,-1031.38066694,0.00027397,2]
[355396159,1741104641115,-1031.38066694,0.00027397,2]
[355396160,1741104641125,-1031.38066694,0.00027397,2]
[355396161,1741104641136,-1031.38066694,0.00027397,2]
[355396162,1741104641146,-1031.38066694,0.00027397,2]
[355396163,1741104641157,-1031.38066694,0.00027397,2]
[355396164,1741104641170,-1036.53757028,0.00027397,2]
[355396165,1741104641179,-1036.53757028,0.00027397,2]
[355396166,1741104641189,-1036.53757028,0.00027397,2]
[355396167,1741104641200,-1036.53757028,0.00027397,2]
[355396168,1741104641210,-1036.53757028,0.00027397,2]
[355396169,1741104641220,-1036.53757028,0.00027397,2]
[355396170,1741104641230,-1036.53757028,0.00027397,2]
[355396171,1741104641240,-1036.53757028,0.00027397,2]
[355396172,1741104641249,-1036.53757028,0.00027397,2]
[355396173,1741104641260,-1036.53757028,0.00027397,2]
[355396174,1741104641271,-1036.53757028,0.00027397,2]
[355396175,1741104641280,-1036.53757028,0.00027397,2]
[355396176,1741104641290,-1036.53757028,0.00027397,2]
[355396177,1741104641300,-1036.53757028,0.00027397,2]
[355396178,1741104641310,-1036.53757026,0.00027397,2]
[355396179,1741104641320,-1036.53757026,0.00027397,2]
[355396180,1741104641330,-1036.53757026,0.00027397,2]
[355396181,1741104641341,-1036.53757026,0.00027397,2]
[355396182,1741104641350,-1036.53757026,0.00027397,2]
[355396183,1741104641360,-1036.53757026,0.00027397,2]
[355396184,1741104641370,-420.0,0.00029138,2]
[355396185,1741104641380,-484.84354607,0.00029514,2]
[355396186,1741104641390,-160.0,0.00030177,2]
[355396187,1741104641402,-150.0,0.00030287,2]
[355396188,1741104641415,-471.37682309,0.000309,5]
[355396189,1741104641425,-150.0,0.00031279,2]
[355396190,1741104641435,-587.0,0.00031503,2]
[355396191,1741104641444,-153.55,0.000318,31]
[355396192,1741104641454,-153.55,0.000318,31]
[355396193,1741104641464,-153.55,0.000318,31]
[355396194,1741104641473,-153.55,0.000318,31]
[355396195,1741104641482,-153.55,0.000318,31]
[355396196,1741104641492,-484.84354607,0.00032079,2]
[355396197,1741104641502,-257.97086,0.000323,120]
[355396198,1741104641511,-308.81067579,0.00032552,5]
[355396199,1741104641522,-1000.0,0.00032552,5]
[355396200,1741104641531,-433.63128001,0.00032552,5]
[355396201,1741104641541,-500.0,0.00032552,5]
[355396202,1741104641551,-151.0,0.000326,12]
[355396203,1741104641562,-150.0,0.00032649,2]
[355396204,1741104641571,-7436.40572808,0.00032852,5]
[355396205,1741104641581,-71680.95709055,0.00032852,5]
[355396206,1741104641591,-1000.0,0.00032852,5]
[355396207,1741104641601,-1000.0,0.00032852,5]
[355396208,1741104641611,-1000.0,0.00032852,5]
[355396209,1741104641621,-491.68021027,0.00032852,5]
[355396210,1741104641631,-1000.0,0.00032852,5]
[355396211,1741104641643,-1000.0,0.00032852,5]
[355396212,1741104641656,-500.0,0.000329,5]
[355396213,1741104641670,-500.0,0.000329,5]
[355396214,1741104641680,-500.0,0.000329,5]
[355396215,1741104641691,-379.11,0.000329,30]
[355396216,1741104641702,-1750.16,0.000329,30]
[355396217,1741104641713,-50000.0,0.000329,2]
[355396218,1741104641724,-37176.43,0.000329,30]
[355396219,1741104641734,-151.0,0.00034,19]
[355396220,1741104641744,-150.0,0.00034018,2]
[355396221,1741104641753,-823.0,0.0003406,2]
[355396222,1741104641763,-5000.0,0.00034344,7]
[355396223,1741104641773,-484.84354607,0.00034643,2]
[355396224,1741104641783,-600.51675,0.00035,5]
[355396225,1741104641793,-11994.0908849,0.0003529,2]
[355396226,1741104641803,-1209.0,0.000353,30]
[355396227,1741104641813,-150.0,0.00035388,2]
[355396228,1741104641824,-151.0,0.000354,15]
[355396229,1741104641834,-518.5,0.00035419,30]
[355396230,1741104641844,-500.0,0.0003565,5]
[355396231,1741104641854,-500.0,0.0003565,5]
[355396232,1741104641866,-500.0,0.0003589,2]
[355396233,1741104641877,-37176.43,0.000359,30]
[355396234,1741104641887,-153.55,0.00036,31]
[355396235,1741104641896,-153.55,0.00036,31]
[355396236,1741104641906,-153.55,0.00036,31]
[355396237,1741104641917,-153.55,0.00036,31]
[355396238,1741104641927,-153.55,0.00036,31]
[355396239,1741104641936,-153.55,0.00036,31]
[355396240,1741104641947,-153.55,0.00036,31]
[355396241,1741104641956,-153.55,0.00036,31]
[355396242,1741104641966,-153.55,0.00036,31]
[355396243,1741104641976,-153.55,0.00036,31]
[355396244,1741104641987,-379.11,0.00036,30]
[355396245,1741104641997,-1750.16,0.00036,30]
[355396246,1741104642008,-3178.43019659,0.000362,98]
[355396247,1741104642018,-3178.43019656,0.000362,98]
[355396248,1741104642028,-3178.43019656,0.000362,98]
[355396249,1741104642037,-157.8205,0.00036428,5]
[355396250,1741104642049,-600.51675,0.00036428,5]
[355396251,1741104642059,-150.0,0.00036758,2]
[355396252,1741104642069,-252.0,0.00036824,2]
[355396253,1741104642174,-151.0,0.000369,16]
[355396254,1741104642198,-5000.0,0.00037,60]
[355396255,1741104642207,-150.0,0.0003715,3]
[355396256,1741104642218,-484.84354607,0.00037207,2]
[355396257,1741104642228,-37176.43,0.000374,30]
[355396258,1741104642238,-379.11,0.000376,30]
[355396259,1741104642248,-1750.16,0.000376,30]
[355396260,1741104642258,-5000.0,0.00037677,7]
[355396261,1741104642268,-250.0,0.00037698,3]
[355396262,1741104642278,-1097.25,0.000379,2]
[355396263,1741104642290,-150.0,0.00038128,2]
[355396264,1741104642299,-350.0,0.00038246,3]
[355396265,1741104642309,-151.0,0.000383,11]
[355396266,1741104642321,-160.0,0.00038346,3]
[355396267,1741104642331,-4976.68,0.00038356,120]
[355396268,1741104642340,-500.0,0.00038379,5]
[355396269,1741104642350,-500.0,0.00038379,5]
[355396270,1741104642360,-516.16414683,0.00038379,5]
[355396271,1741104642370,-246.966,0.00038532,52]
[355396272,1741104642380,-450.0,0.00038794,3]
[355396273,1741104642389,-205.55450368,0.00038892,2]
[355396274,1741104642399,-37176.43,0.000389,30]
[355396275,1741104642408,-4976.68,0.00038904,120]
[355396276,1741104642422,-11994.0908849,0.0003899,3]
[355396277,1741104642431,-5000.0,0.00039,80]
[355396278,1741104642441,-379.11,0.00039,30]
[355396279,1741104642451,-1750.16,0.00039,30]
[355396280,1741104642461,-550.0,0.00039342,3]
[355396281,1741104642471,-212.69,0.000394,7]
[355396282,1741104642481,-4976.68,0.00039452,120]
[355396283,1741104642491,-150.0,0.00039498,2]
[355396284,1741104642501,-1056.8091837,0.000395,2]
[355396285,1741104642511,-151.0,0.000397,18]
[355396286,1741104642521,-484.84354607,0.00039771,2]
[355396287,1741104642530,-200.0,0.0003989,3]
[355396288,1741104642540,-205.55450368,0.00039897,2]
[355396289,1741104642550,-1000.0,0.0004,30]
[355396290,1741104642560,-490.351,0.0004,2]
[355396291,1741104642570,-4976.68,0.0004,120]
[355396292,1741104642579,-472.0,0.0004,21]
[355396293,1741104642589,-3178.43019656,0.00040145,120]
[355396294,1741104642599,-156.538119,0.00040188,2]
[355396295,1741104642609,-153.55,0.000402,31]
[355396296,1741104642618,-153.55,0.000402,31]
[355396297,1741104642628,-153.55,0.000402,31]
[355396298,1741104642638,-153.55,0.000402,31]
[355396299,1741104642648,-153.55,0.000402,31]
[355396300,1741104642661,-153.55,0.000402,31]
[355396301,1741104642673,-153.55,0.000402,31]
[355396302,1741104642683,-153.55,0.000402,31]
[355396303,1741104642694,-153.55,0.000402,31]
[355396304,1741104642705,-2900.0,0.00040382,60]
[355396305,1741104642716,-37176.43,0.000404,30]
[355396306,1741104642728,-176.920165,0.000405,2]
[355396307,1741104642740,-212.69,0.000405,7]
[355396308,1741104642750,-379.11,0.000405,30]
[355396309,1741104642760,-1750.16,0.000405,30]
[355396310,1741104642770,-4976.68,0.00040547,120]